Workbook

Sheet 2024년 구매실적(월별) - 자체구매 현황
A1: 2024년 구매실적(월별) - 자체구매 현황(단위 : 원) | O1: 2025-04-22 09:42:33 AM
A4: 총구매액 | B4: 총구매액 | C4: 2024년도 (실적) | O4: 합계
C5: 1/4 | F5: 2/4 | I5: 3/4 | L5: 4/4
C6: 1월 | D6: 2월 | E6: 3월 | F6: 4월 | G6: 5월 | H6: 6월 | I6: 7월 | J6: 8월 | K6: 9월 | L6: 10월 | M6: 11월 | N6: 12월
A7: 총구매액 | B7: 계 | C7: =SUM(C8:C10) -> 112,830,150 | D7: 268,518,223 | E7: 2,242,220,090 | F7: 657,536,493 | G7: 425,646,667 | H7: 602,978,942 | I7: 508,685,145 | J7: 499,054,661 | K7: 975,768,510 | L7: 460,233,465 | M7: 476,416,065 | N7: 1,050,193,049 | O7: =SUM(C7:N7) -> 8,280,081,460
B8: 물품 | C8: 91,304,510 | D8: 169,315,533 | E8: 253,053,100 | F8: 372,283,803 | G8: 245,428,917 | H8: 401,117,552 | I8: 288,167,225 | J8: 231,361,961 | K8: 408,897,825 | L8: 228,688,245 | M8: 211,438,795 | N8: 433,969,429 | O8: 3,335,026,895
B9: 공사 | C9: 2,200,000 | D9: 32,424,900 | E9: 1,555,403,100 | F9: 52,328,200 | G9: 26,225,700 | H9: 59,108,280 | I9: 225,000 | J9: 48,181,500 | K9: 311,038,705 | L9: 31,264,710 | M9: 73,579,700 | N9: 84,705,040 | O9: 2,276,684,835
B10: 용역 | C10: 19,325,640 | D10: 66,777,790 | E10: 433,763,890 | F10: 232,924,490 | G10: 153,992,050 | H10: 142,753,110 | I10: 220,292,920 | J10: 219,511,200 | K10: 255,831,980 | L10: 200,280,510 | M10: 191,397,570 | N10: 531,518,580 | O10: 2,668,369,730
A11: 중소기업제품구매액 | B11: 계 | C11: =SUM(C12:C14) -> 45,662,640 | D11: 168,384,440 | E11: 2,162,625,330 | F11: 582,427,900 | G11: 375,272,970 | H11: 503,905,320 | I11: 383,836,790 | J11: 395,809,050 | K11: 882,995,720 | L11: 360,589,200 | M11: 401,762,810 | N11: 916,350,020 | O11: 7,179,622,190
B12: 물품 | C12: 25,451,680 | D12: 87,320,150 | E12: 176,620,890 | F12: 297,890,210 | G12: 195,473,970 | H12: 308,867,580 | I12: 165,862,870 | J12: 128,904,800 | K12: 319,675,085 | L12: 134,344,480 | M12: 138,553,540 | N12: 327,834,350 | O12: 2,306,799,605
B13: 공사 | C13: 2,200,000 | D13: 32,424,900 | E13: 1,555,403,100 | F13: 52,328,200 | G13: 26,225,700 | H13: 59,108,280 | I13: 225,000 | J13: 48,181,500 | K13: 311,038,705 | L13: 31,264,710 | M13: 73,579,700 | N13: 84,705,040 | O13: 2,276,684,835
B14: 용역 | C14: 18,010,960 | D14: 48,639,390 | E14: 430,601,340 | F14: 232,209,490 | G14: 153,573,300 | H14: 135,929,460 | I14: 217,748,920 | J14: 218,722,750 | K14: 252,281,930 | L14: 194,980,010 | M14: 189,629,570 | N14: 503,810,630 | O14: 2,596,137,750
A15: 여성기업제품구매액 | B15: 계 | C15: =SUM(C16:C18) -> 7,330,000 | D15: 7,496,820 | E15: 57,638,850 | F15: 18,155,500 | G15: 50,797,890 | H15: 9,530,870 | I15: 28,943,300 | J15: 42,771,700 | K15: 36,870,630 | L15: 12,922,140 | M15: 19,689,350 | N15: 83,314,740 | O15: 375,461,790
B16: 물품 | C16: 5,130,000 | D16: 377,020 | E16: 43,972,950 | F16: 6,410,500 | G16: 45,077,890 | H16: 0 | I16: 19,439,800 | J16: 18,018,700 | K16: 29,971,830 | L16: 91,300 | M16: 18,789,350 | N16: 33,691,640 | O16: 220,970,980
B17: 공사 | C17: 2,200,000 | D17: 0 | E17: 1,870,000 | F17: 0 | G17: 0 | H17: 0 | I17: 225,000 | J17: 24,313,000 | K17: 0 | L17: 12,390,840 | M17: 0 | N17: 6,758,400 | O17: 47,757,240
B18: 용역 | C18: 0 | D18: 7,119,800 | E18: 11,795,900 | F18: 11,745,000 | G18: 5,720,000 | H18: 9,530,870 | I18: 9,278,500 | J18: 440,000 | K18: 6,898,800 | L18: 440,000 | M18: 900,000 | N18: 42,864,700 | O18: 106,733,570
A19: 장애인기업제품구매액 | B19: 계 | C19: =SUM(C20:C22) -> 0 | D19: 0 | E19: 176,000 | F19: 55,000 | G19: 4,159,100 | H19: 636,000 | I19: 523,000 | J19: 2,077,000 | K19: 3,250,900 | L19: 480,000 | M19: 4,056,000 | N19: 10,315,300 | O19: 25,728,300
B20: 물품 | C20: 0 | D20: 0 | E20: 176,000 | F20: 0 | G20: 1,849,100 | H20: 0 | I20: 33,000 | J20: 0 | K20: 0 | L20: 0 | M20: 2,046,000 | N20: 2,215,300 | O20: 6,319,400
B21: 공사 | C21: 0 | D21: 0 | E21: 0 | F21: 0 | G21: 2,310,000 | H21: 0 | I21: 0 | J21: 0 | K21: 0 | L21: 0 | M21: 0 | N21: 7,200,000 | O21: 9,510,000
B22: 용역 | C22: 0 | D22: 0 | E22: 0 | F22: 55,000 | G22: 0 | H22: 636,000 | I22: 490,000 | J22: 2,077,000 | K22: 3,250,900 | L22: 480,000 | M22: 2,010,000 | N22: 900,000 | O22: 9,898,900
B24: 구분 | C24: 2024년도 (실적) | O24: 합계
C25: 1월 | D25: 2월 | E25: 3월 | F25: 4월 | G25: 5월 | H25: 6월 | I25: 7월 | J25: 8월 | K25: 9월 | L25: 10월 | M25: 11월 | N25: 12월
A26: 기술개발제품 | B26: 본부 | C26: 0 | D26: 0 | E26: 0 | F26: 209,600,000 | G26: 0 | H26: 0 | I26: 0 | J26: 0 | K26: 0 | L26: 0 | M26: 0 | N26: 0 | O26: =SUM(C26:N26) -> 209,600,000
B27: 소속기관 | C27: 0 | D27: 0 | E27: 0 | F27: 0 | G27: 0 | H27: 0 | I27: 0 | J27: 0 | K27: 0 | L27: 0 | M27: 0 | N27: 0 | O27: =SUM(C27:N27) -> 0
B28: 계 | C28: =SUM(C26:C27) -> 0 | D28: 0 | E28: 0 | F28: 209,600,000 | G28: 0 | H28: 0 | I28: 0 | J28: 0 | K28: 0 | L28: 0 | M28: 0 | N28: 0 | O28: =SUM(C27:N27) -> 0
B30: 구분 | C30: 2024년도 (실적) | O30: 합계
C31: 1월 | D31: 2월 | E31: 3월 | F31: 4월 | G31: 5월 | H31: 6월 | I31: 7월 | J31: 8월 | K31: 9월 | L31: 10월 | M31: 11월 | N31: 12월
A32: 공사용자재직접구매실적 | B32: 본부 | C32: 0 | D32: 0 | E32: 0 | F32: 0 | G32: 0 | H32: 0 | I32: 0 | J32: 0 | K32: 0 | L32: 0 | M32: 0 | N32: 0 | O32: =SUM(C32:N32) -> 0
B33: 소속기관 | C33: 0 | D33: 0 | E33: 0 | F33: 0 | G33: 0 | H33: 0 | I33: 0 | J33: 0 | K33: 0 | L33: 0 | M33: 0 | N33: 0 | O33: =SUM(C33:N33) -> 0
B34: 계 | C34: =SUM(C32:C33) -> 0 | D34: 0 | E34: 0 | F34: 0 | G34: 0 | H34: 0 | I34: 0 | J34: 0 | K34: 0 | L34: 0 | M34: 0 | N34: 0 | O34: =SUM(C34:N34) -> 0
A36: Copyright(c) 중소기업제품 공공구매 종합정보망(smpp)

Sheet 2024년 구매실적(월별) - 조달구매 현황
A1: 2024년 구매실적(월별) - 조달구매 현황(단위 : 원) | O1: 2025-04-22 09:43:26 AM
A4: 총구매액 | B4: 총구매액 | C4: 2024년도 (실적) | O4: 합계
C5: 1/4 | F5: 2/4 | I5: 3/4 | L5: 4/4
C6: 1월 | D6: 2월 | E6: 3월 | F6: 4월 | G6: 5월 | H6: 6월 | I6: 7월 | J6: 8월 | K6: 9월 | L6: 10월 | M6: 11월 | N6: 12월
A7: 총구매액 | B7: 계 | C7: =SUM(C8:C10) -> 320,910 | D7: =SUM(D8:D10) -> 26,790,850 | E7: =SUM(E8:E10) -> 432,645,600 | F7: =SUM(F8:F10) -> 84,346,720 | G7: =SUM(G8:G10) -> 0 | H7: =SUM(H8:H10) -> 95,952,490 | I7: =SUM(I8:I10) -> 9,095,210 | J7: =SUM(J8:J10) -> 18,659,990 | K7: =SUM(K8:K10) -> 11,977,680 | L7: =SUM(L8:L10) -> 107,643,110 | M7: =SUM(M8:M10) -> 51,396,040 | N7: =SUM(N8:N10) -> 94,658,460 | O7: =SUM(C7:N7) -> 933,487,060
B8: 물품 | C8: 320,910 | D8: 26,790,850 | E8: 432,645,600 | F8: 84,346,720 | G8: 0 | H8: 95,952,490 | I8: 9,095,210 | J8: 18,659,990 | K8: 11,977,680 | L8: 107,643,110 | M8: 51,396,040 | N8: 94,658,460 | O8: =SUM(C8:N8) -> 933,487,060
B9: 공사 | C9: 0 | D9: 0 | E9: 0 | F9: 0 | G9: 0 | H9: 0 | I9: 0 | J9: 0 | K9: 0 | L9: 0 | M9: 0 | N9: 0 | O9: =SUM(C9:N9) -> 0
B10: 용역 | C10: 0 | D10: 0 | E10: 0 | F10: 0 | G10: 0 | H10: 0 | I10: 0 | J10: 0 | K10: 0 | L10: 0 | M10: 0 | N10: 0 | O10: =SUM(C10:N10) -> 0
A11: 중소기업제품구매액 | B11: 계 | C11: =SUM(C12:C14) -> 150,000 | D11: =SUM(D12:D14) -> 2,996,400 | E11: =SUM(E12:E14) -> 410,126,390 | F11: =SUM(F12:F14) -> 76,768,520 | G11: =SUM(G12:G14) -> 0 | H11: =SUM(H12:H14) -> 74,357,040 | I11: =SUM(I12:I14) -> 8,773,490 | J11: =SUM(J12:J14) -> 18,659,990 | K11: =SUM(K12:K14) -> 11,977,680 | L11: =SUM(L12:L14) -> 105,495,790 | M11: =SUM(M12:M14) -> 51,396,040 | N11: =SUM(N12:N14) -> 84,266,570 | O11: =SUM(C11:N11) -> 844,967,910
B12: 물품 | C12: 150,000 | D12: 2,996,400 | E12: 410,126,390 | F12: 76,768,520 | G12: 0 | H12: 74,357,040 | I12: 8,773,490 | J12: 18,659,990 | K12: 11,977,680 | L12: 105,495,790 | M12: 51,396,040 | N12: 84,266,570 | O12: =SUM(C12:N12) -> 844,967,910
B13: 공사 | C13: 0 | D13: 0 | E13: 0 | F13: 0 | G13: 0 | H13: 0 | I13: 0 | J13: 0 | K13: 0 | L13: 0 | M13: 0 | N13: 0 | O13: =SUM(C13:N13) -> 0
B14: 용역 | C14: 0 | D14: 0 | E14: 0 | F14: 0 | G14: 0 | H14: 0 | I14: 0 | J14: 0 | K14: 0 | L14: 0 | M14: 0 | N14: 0 | O14: =SUM(C14:N14) -> 0
A15: 여성기업제품구매액 | B15: 계 | C15: =SUM(C16:C18) -> 150,000 | D15: =SUM(D16:D18) -> 10,043,390 | E15: =SUM(E16:E18) -> 0 | F15: =SUM(F16:F18) -> 0 | G15: =SUM(G16:G18) -> 0 | H15: =SUM(H16:H18) -> 0 | I15: =SUM(I16:I18) -> 0 | J15: =SUM(J16:J18) -> 0 | K15: =SUM(K16:K18) -> 0 | L15: =SUM(L16:L18) -> 0 | M15: =SUM(M16:M18) -> 0 | N15: =SUM(N16:N18) -> 0 | O15: =SUM(C15:N15) -> 10,193,390
B16: 물품 | C16: 150,000 | D16: 10,043,390 | E16: 0 | F16: 0 | G16: 0 | H16: 0 | I16: 0 | J16: 0 | K16: 0 | L16: 0 | M16: 0 | N16: 0 | O16: =SUM(C16:N16) -> 10,193,390
B17: 공사 | C17: 0 | D17: 0 | E17: 0 | F17: 0 | G17: 0 | H17: 0 | I17: 0 | J17: 0 | K17: 0 | L17: 0 | M17: 0 | N17: 0 | O17: =SUM(C17:N17) -> 0
B18: 용역 | C18: 0 | D18: 0 | E18: 0 | F18: 0 | G18: 0 | H18: 0 | I18: 0 | J18: 0 | K18: 0 | L18: 0 | M18: 0 | N18: 0 | O18: =SUM(C18:N18) -> 0
A19: 장애인기업제품구매액 | B19: 계 | C19: =SUM(C20:C22) -> 0 | D19: =SUM(D20:D22) -> 0 | E19: =SUM(E20:E22) -> 0 | F19: =SUM(F20:F22) -> 0 | G19: =SUM(G20:G22) -> 0 | H19: =SUM(H20:H22) -> 0 | I19: =SUM(I20:I22) -> 0 | J19: =SUM(J20:J22) -> 0 | K19: =SUM(K20:K22) -> 0 | L19: =SUM(L20:L22) -> 0 | M19: =SUM(M20:M22) -> 0 | N19: =SUM(N20:N22) -> 0 | O19: =SUM(C19:N19) -> 0
B20: 물품 | C20: 0 | D20: 0 | E20: 0 | F20: 0 | G20: 0 | H20: 0 | I20: 0 | J20: 0 | K20: 0 | L20: 0 | M20: 0 | N20: 0 | O20: =SUM(C20:N20) -> 0
B21: 공사 | C21: 0 | D21: 0 | E21: 0 | F21: 0 | G21: 0 | H21: 0 | I21: 0 | J21: 0 | K21: 0 | L21: 0 | M21: 0 | N21: 0 | O21: =SUM(C21:N21) -> 0
B22: 용역 | C22: 0 | D22: 0 | E22: 0 | F22: 0 | G22: 0 | H22: 0 | I22: 0 | J22: 0 | K22: 0 | L22: 0 | M22: 0 | N22: 0 | O22: =SUM(C22:N22) -> 0
B24: 구분 | C24: 2024년도 (실적) | O24: 합계
C25: 1월 | D25: 2월 | E25: 3월 | F25: 4월 | G25: 5월 | H25: 6월 | I25: 7월 | J25: 8월 | K25: 9월 | L25: 10월 | M25: 11월 | N25: 12월
A26: 기술개발제품 | B26: 본부 | C26: 0 | D26: 1,179,600 | E26: 0 | F26: 92,705,240 | G26: 0 | H26: 0 | I26: 0 | J26: 0 | K26: 0 | L26: 0 | M26: 30,660,000 | N26: 81,032,000 | O26: =SUM(C26:N26) -> 205,576,840
B27: 소속기관 | C27: 0 | D27: 0 | E27: 0 | F27: 0 | G27: 0 | H27: 0 | I27: 0 | J27: 0 | K27: 0 | L27: 0 | M27: 0 | N27: 0 | O27: =SUM(C27:N27) -> 0
B28: 계 | C28: =SUM(C26:C27) -> 0 | D28: =SUM(D26:D27) -> 1,179,600 | E28: =SUM(E26:E27) -> 0 | F28: =SUM(F26:F27) -> 92,705,240 | G28: =SUM(G26:G27) -> 0 | H28: =SUM(H26:H27) -> 0 | I28: =SUM(I26:I27) -> 0 | J28: =SUM(J26:J27) -> 0 | K28: =SUM(K26:K27) -> 0 | L28: =SUM(L26:L27) -> 0 | M28: =SUM(M26:M27) -> 30,660,000 | N28: =SUM(N26:N27) -> 81,032,000 | O28: =SUM(C27:N27) -> 0
B30: 구분 | C30: 2024년도 (실적) | O30: 합계
C31: 1월 | D31: 2월 | E31: 3월 | F31: 4월 | G31: 5월 | H31: 6월 | I31: 7월 | J31: 8월 | K31: 9월 | L31: 10월 | M31: 11월 | N31: 12월
A32: 공사용자재직접구매실적 | B32: 본부 | C32: 0 | D32: 0 | E32: 0 | F32: 0 | G32: 0 | H32: 0 | I32: 0 | J32: 0 | K32: 0 | L32: 0 | M32: 0 | N32: 0 | O32: =SUM(C32:N32) -> 0
B33: 소속기관 | C33: 0 | D33: 0 | E33: 0 | F33: 0 | G33: 0 | H33: 0 | I33: 0 | J33: 0 | K33: 0 | L33: 0 | M33: 0 | N33: 0 | O33: =SUM(C33:N33) -> 0
B34: 계 | C34: =SUM(C32:C33) -> 0 | D34: =SUM(D32:D33) -> 0 | E34: =SUM(E32:E33) -> 0 | F34: =SUM(F32:F33) -> 0 | G34: =SUM(G32:G33) -> 0 | H34: =SUM(H32:H33) -> 0 | I34: =SUM(I32:I33) -> 0 | J34: =SUM(J32:J33) -> 0 | K34: =SUM(K32:K33) -> 0 | L34: =SUM(L32:L33) -> 0 | M34: =SUM(M32:M33) -> 0 | N34: =SUM(N32:N33) -> 0 | O34: =SUM(C34:N34) -> 0
A36: Copyright(c) 중소기업제품 공공구매 종합정보망(smpp)
